bitfinex/quotes_BTCUSD_20240927
["timestamp","ask_amount","ask_price","bid_price","bid_amount"]
[1727460095972,0.00277595,66062.0,66061.0,0.82340405]
[1727460096175,0.00277595,66062.0,66061.0,0.777995]
[1727460096932,0.00277595,66062.0,66061.0,0.82341123]
[1727460097216,0.00277595,66062.0,66061.0,0.777995]
[1727460097424,0.00277595,66062.0,66061.0,0.82341082]
[1727460098573,0.00277595,66062.0,66061.0,0.62662]
[1727460099020,0.00277595,66062.0,66061.0,0.777995]
[1727460099464,0.00277595,66062.0,66061.0,0.62662]
[1727460099698,0.00277595,66062.0,66061.0,0.46112]
[1727460099939,0.19991855,66062.0,66061.0,0.45612]
[1727460100152,0.19991855,66062.0,66061.0,0.46112]
[1727460101498,0.15414795,66062.0,66061.0,0.46804084]
[1727460102355,0.15414795,66062.0,66061.0,0.46604084]
[1727460102356,0.15214795,66062.0,66061.0,0.46604084]
[1727460102835,0.15314795,66062.0,66061.0,0.46804084]
[1727460103044,0.00177595,66062.0,66061.0,0.46804084]
[1727460103292,0.17587863,66062.0,66061.0,0.46604084]
[1727460104146,0.17687863,66062.0,66061.0,0.46804084]
[1727460104569,0.02550663,66062.0,66061.0,0.46804084]
[1727460104996,0.17687863,66062.0,66061.0,0.46804084]
[1727460106122,0.17587863,66062.0,66061.0,0.46604084]
[1727460106332,0.17687863,66062.0,66061.0,0.46804084]
[1727460106992,0.17787863,66062.0,66061.0,0.46804084]
[1727460107421,0.33348743,66062.0,66061.0,0.46304084]
[1727460108074,0.33348743,66062.0,66061.0,0.46469484]
[1727460108291,0.33248743,66062.0,66061.0,0.46469484]
[1727460108772,0.43848743,66062.0,66061.0,0.46469484]
[1727460108997,0.46975675,66062.0,66061.0,0.46469484]
[1727460109227,0.46875675,66062.0,66061.0,0.46269484]
[1727460109457,0.48475675,66062.0,66061.0,0.455774]
[1727460109693,0.48275675,66062.0,66061.0,0.455774]
[1727460109925,0.48475675,66062.0,66061.0,0.455774]
[1727460110142,0.48075675,66062.0,66061.0,0.417774]
[1727460110434,0.49075675,66062.0,66061.0,0.417774]
[1727460110663,0.151395,66052.0,66051.0,0.001656]
[1727460110874,0.6037838,66052.0,66051.0,0.001656]
[1727460111316,0.60560161,66052.0,66051.0,0.001656]
[1727460111757,0.60360161,66052.0,66051.0,0.001656]
[1727460111981,0.60560161,66052.0,66051.0,0.001656]
[1727460112200,0.64134072,66052.0,66051.0,0.001656]
[1727460112431,0.62734072,66052.0,66051.0,0.001656]
[1727460112846,0.65534072,66052.0,66051.0,0.001656]
[1727460113283,0.64134072,66052.0,66051.0,0.001656]
[1727460113493,0.65929778,66052.0,66051.0,0.001656]
[1727460114220,0.64529778,66052.0,66051.0,0.001656]
[1727460114432,0.65829778,66052.0,66051.0,0.001656]
[1727460115090,0.31490898,66052.0,66051.0,0.001656]
[1727460115308,0.29190898,66052.0,66051.0,0.001656]
[1727460115558,0.30590898,66052.0,66051.0,0.001656]
[1727460116258,0.27890898,66052.0,66051.0,0.001656]
[1727460116481,0.28690898,66052.0,66051.0,0.001656]
[1727460116703,0.42540368,66052.0,66051.0,0.001656]
[1727460116910,0.41740368,66052.0,66051.0,0.001656]
[1727460117587,0.41740368,66052.0,66051.0,0.001656]
[1727460118092,0.40640368,66052.0,66051.0,0.001656]
[1727460118551,0.40840368,66052.0,66051.0,0.001656]
[1727460119934,0.38466457,66052.0,66051.0,0.001656]
[1727460124601,0.40840176,66052.0,66051.0,0.001656]
[1727460131250,0.02656419,66052.0,66051.0,0.153054]
[1727460131483,0.002827,66052.0,66051.0,0.402754]
[1727460132193,0.000827,66052.0,66051.0,0.402754]
[1727460134231,0.001827,66052.0,66051.0,0.402754]
[1727460134484,0.001827,66052.0,66051.0,0.251356]
[1727460134727,0.032287,66052.0,66051.0,0.251356]
[1727460135210,0.184682,66052.0,66051.0,0.251356]
[1727460135461,0.182682,66052.0,66051.0,0.251356]
[1727460135686,0.183682,66052.0,66051.0,0.251356]
[1727460136147,0.182682,66052.0,66051.0,0.251356]
[1727460136362,0.183682,66052.0,66051.0,0.251356]
[1727460137060,0.182682,66052.0,66051.0,0.251356]
[1727460137282,0.183682,66052.0,66051.0,0.251356]
[1727460137733,0.183682,66052.0,66051.0,0.167456]
[1727460138205,0.185682,66052.0,66051.0,0.167456]
[1727460138417,0.183682,66052.0,66051.0,0.167456]
[1727460139022,0.182682,66052.0,66051.0,0.167456]
[1727460139261,0.184682,66052.0,66051.0,0.167456]
[1727460139678,0.182682,66052.0,66051.0,0.167456]
[1727460139885,0.152222,66052.0,66051.0,0.167456]
[1727460143218,0.17595748,66052.0,66051.0,0.167456]
[1727460143458,0.17595748,66052.0,66051.0,0.001656]
[1727460143885,0.27595748,66052.0,66051.0,0.001656]
[1727460144934,0.28295748,66052.0,66051.0,0.001656]
[1727460145147,0.4074738,66052.0,66051.0,0.001656]
[1727460145561,0.4024738,66052.0,66051.0,0.001656]
[1727460146019,0.4054738,66052.0,66051.0,0.001656]
[1727460146227,0.3984738,66052.0,66051.0,0.001656]
[1727460146444,0.4054738,66052.0,66051.0,0.001656]
[1727460146863,0.3984738,66052.0,66051.0,0.001656]
[1727460147094,0.4064738,66052.0,66051.0,0.001656]
[1727460147540,0.3984738,66052.0,66051.0,0.001656]
[1727460147747,0.4024738,66052.0,66051.0,0.001656]
[1727460148192,0.4084738,66052.0,66051.0,0.001656]
[1727460148867,0.5131738,66052.0,66051.0,0.001656]
[1727460149122,0.5051738,66052.0,66051.0,0.001656]
[1727460149346,0.4981738,66052.0,66051.0,0.001656]
[1727460149558,0.5061738,66052.0,66051.0,0.001656]
[1727460149767,0.5131738,66052.0,66051.0,0.001656]
[1727460149975,0.48243832,66052.0,66051.0,0.001656]
[1727460150854,0.49843832,66052.0,66051.0,0.001656]
[1727460151114,0.49643832,66052.0,66051.0,0.001656]
[1727460151508,0.48843832,66052.0,66051.0,0.001656]
[1727460151725,0.49043832,66052.0,66051.0,0.001656]
[1727460151960,0.50343832,66052.0,66051.0,0.001656]
[1727460152446,0.48943832,66052.0,66051.0,0.001656]
[1727460152884,0.50043832,66052.0,66051.0,0.001656]
[1727460153320,0.53817854,66052.0,66051.0,0.001656]
[1727460153552,0.52417854,66052.0,66051.0,0.001656]
[1727460154022,0.53817854,66052.0,66051.0,0.001656]
[1727460154237,0.52417854,66052.0,66051.0,0.001656]
[1727460154717,0.51017854,66052.0,66051.0,0.001656]
[1727460154950,0.52417854,66052.0,66051.0,0.001656]
[1727460155407,0.51017854,66052.0,66051.0,0.001656]
[1727460155850,0.53817854,66052.0,66051.0,0.001656]
[1727460156064,0.52417854,66052.0,66051.0,0.001656]
[1727460156790,0.52417854,66052.0,66051.0,1e-06]
[1727460156791,0.53817854,66052.0,66051.0,1e-06]
[1727460157893,0.50043832,66052.0,66051.0,1e-06]
[1727460158324,0.51443832,66052.0,66051.0,1e-06]
[1727460158804,0.48643832,66052.0,66051.0,1e-06]
[1727460159252,0.51443832,66052.0,66051.0,1e-06]
[1727460159487,0.50043832,66052.0,66051.0,1e-06]
[1727460159927,0.51443832,66052.0,66051.0,1e-06]
[1727460161348,0.50043832,66052.0,66051.0,1e-06]
[1727460161555,0.51443832,66052.0,66051.0,1e-06]
[1727460161787,0.002,66040.0,66037.0,0.22645098]
[1727460162029,0.002,66040.0,66038.0,0.03280555]
[1727460162030,0.54419991,66039.0,66038.0,0.03280555]
[1727460162276,0.251446,66030.0,66029.0,0.22645098]
[1727460162517,0.44942091,66030.0,66029.0,0.22645098]
[1727460162771,0.5854276,66030.0,66029.0,0.22645098]
[1727460163019,0.25146,66024.0,66023.0,0.166]
[1727460165455,0.45643491,66024.0,66023.0,0.166]
[1727460165694,0.151469,66020.0,66019.0,0.001656]
[1727460165932,0.28799179,66020.0,66019.0,0.001656]
[1727460167033,0.5659667,66020.0,66019.0,0.001656]
[1727460167243,0.5889667,66020.0,66019.0,0.001656]
[1727460167694,0.5909667,66020.0,66019.0,0.001656]
[1727460167934,0.5889667,66020.0,66019.0,0.001656]
[1727460168177,0.6735667,66020.0,66019.0,0.001656]
[1727460168673,0.6815667,66020.0,66019.0,0.001656]
[1727460169109,0.69941011,66020.0,66019.0,0.001656]
[1727460169314,0.68541011,66020.0,66019.0,0.001656]
[1727460169519,0.68441011,66020.0,66019.0,0.001656]
[1727460169754,0.69841011,66020.0,66019.0,0.001656]
[1727460169975,0.71241011,66020.0,66019.0,0.001656]
[1727460170411,0.71041011,66020.0,66019.0,0.001656]
[1727460170864,0.71241011,66020.0,66019.0,0.001656]
[1727460171309,0.69841011,66020.0,66019.0,0.001656]
[1727460172439,0.72216274,66020.0,66019.0,0.001656]
[1727460173166,0.73616274,66020.0,66019.0,0.001656]
[1727460175603,0.45147091,66008.0,66007.0,0.001656]
[1727460175830,0.52897091,66008.0,66007.0,0.001656]
[1727460176547,0.5527264,66008.0,66007.0,0.001656]
[1727460177035,0.5627264,66008.0,66007.0,0.001656]
[1727460177512,0.55297091,66008.0,66007.0,0.001656]
[1727460178003,0.151517,65999.0,65998.0,0.22645098]
[1727460178239,0.274517,65999.0,65998.0,0.22645098]
[1727460178469,0.276517,65999.0,65998.0,0.22645098]
[1727460178719,0.276517,65999.0,65994.0,0.001654]
[1727460178720,0.123,65998.0,65994.0,0.001654]
[1727460178954,0.44950091,65995.0,65994.0,0.001654]
[1727460181341,0.46634733,65995.0,65994.0,0.001654]
[1727460182492,0.45334733,65995.0,65994.0,0.001654]
[1727460182715,0.46734733,65995.0,65994.0,0.001654]
[1727460182927,0.62967014,65995.0,65994.0,0.001654]
[1727460183355,0.61567014,65995.0,65994.0,0.001654]
[1727460183568,0.62867014,65995.0,65994.0,0.001654]
[1727460185224,0.65242859,65995.0,65994.0,0.001654]
[1727460186531,0.47745368,65995.0,65994.0,0.001654]
[1727460186747,0.65242859,65995.0,65994.0,0.001654]
[1727460187862,0.42851291,65990.0,65988.0,0.001654]
[1727460188078,0.45151291,65990.0,65988.0,0.001654]
[1727460189192,0.45951291,65990.0,65988.0,0.001654]
[1727460189399,0.45751291,65990.0,65988.0,0.001654]
[1727460189622,0.46851291,65990.0,65988.0,0.001654]
[1727460189837,0.62490097,65990.0,65988.0,0.001654]
[1727460190537,0.60790097,65990.0,65988.0,0.001654]
[1727460190762,0.64490097,65990.0,65988.0,0.001654]
[1727460191464,0.28654,65989.0,65988.0,1e-06]
[1727460191695,0.161549,65985.0,65978.0,0.22645098]
[1727460191927,0.45952391,65985.0,65978.0,0.22645098]
[1727460192603,0.48328836,65985.0,65978.0,0.22645098]
[1727460193275,0.48328836,65985.0,65976.0,0.0491454]
[1727460193276,0.274567,65977.0,65976.0,0.0491454]
[1727460193502,0.38064499,65977.0,65976.0,0.0491454]
[1727460193715,0.251574,65974.0,65973.0,0.1645]
[1727460193950,0.251574,65974.0,65971.0,0.001656]
[1727460193951,0.251579,65972.0,65971.0,0.001656]
[1727460194180,0.274579,65972.0,65971.0,0.001656]
[1727460194425,0.40564833,65972.0,65971.0,0.00831508]
[1727460196511,0.41564833,65972.0,65971.0,0.00831508]
[1727460196984,0.41864833,65972.0,65971.0,0.00831508]
[1727460197212,0.42864833,65972.0,65971.0,0.00831508]
[1727460200386,0.45241525,65972.0,65971.0,0.00831508]
[1727460201911,0.45241525,65972.0,65971.0,0.001656]
[1727460203284,0.29834592,65972.0,65971.0,0.46870698]
[1727460203558,0.274579,65972.0,65971.0,0.242256]
[1727460203791,0.274579,65972.0,65971.0,0.24952684]
[1727460204247,0.261579,65972.0,65971.0,0.24952684]
[1727460204467,0.267579,65972.0,65971.0,0.17362684]
[1727460204677,0.42616944,65972.0,65971.0,0.17362684]
[1727460204916,0.41616944,65972.0,65971.0,0.17362684]
[1727460205400,0.42516944,65972.0,65971.0,0.17362684]
[1727460205824,0.41016944,65972.0,65971.0,0.17362684]
[1727460206041,0.41916944,65972.0,65971.0,0.17362684]
[1727460206976,0.260579,65972.0,65971.0,0.17362684]
[1727460207218,0.251579,65972.0,65971.0,0.17362684]
[1727460207484,0.251579,65972.0,65971.0,0.25492684]
[1727460207485,0.263579,65972.0,65971.0,0.25492684]
[1727460207701,0.012,65972.0,65971.0,0.42990175]
[1727460207929,0.303129,65979.0,65972.0,0.1525]
[1727460208148,0.01,65995.0,65975.0,0.2286]
[1727460208149,0.15157,65976.0,65975.0,0.2286]
[1727460208598,0.15157,65976.0,65975.0,0.2196]
[1727460212555,0.15157,65976.0,65975.0,0.2226]
[1727460213071,0.2273528,65976.0,65975.0,0.2216]
[1727460213532,0.2273528,65976.0,65975.0,0.2246]
[1727460213763,0.2273528,65976.0,65975.0,0.2226]
[1727460214218,0.2273528,65976.0,65975.0,0.2266]
[1727460214914,0.15157,65976.0,65975.0,0.2236]
[1727460215385,0.15157,65976.0,65975.0,0.2296]
[1727460215589,0.15157,65976.0,65975.0,0.2256]
[1727460215590,0.17533199,65976.0,65975.0,0.2256]
[1727460215877,0.17533199,65976.0,65975.0,0.2216]
[1727460216101,0.17633199,65976.0,65975.0,0.2266]
[1727460216563,0.17633199,65976.0,65975.0,0.2296]
[1727460216792,0.17633199,65976.0,65975.0,0.2196]
[1727460216793,0.21696826,65976.0,65975.0,0.2196]
[1727460217015,0.21696826,65976.0,65975.0,0.2226]
[1727460217264,0.19320627,65976.0,65975.0,0.2226]
[1727460217479,0.19320627,65976.0,65975.0,0.2196]
[1727460218251,0.15157,65976.0,65975.0,0.2246]
[1727460218705,0.15157,65976.0,65975.0,0.2226]
[1727460219136,0.15257,65976.0,65975.0,0.2286]
[1727460219592,0.15157,65976.0,65975.0,0.2196]
[1727460219817,0.15157,65976.0,65975.0,0.2276]
[1727460220040,0.25111507,65976.0,65975.0,0.2276]
[1727460220272,0.02376227,65976.0,65975.0,0.40757491]
[1727460220762,0.17533227,65976.0,65975.0,0.40757491]
[1727460220995,0.02376227,65976.0,65975.0,0.40757491]
[1727460221206,0.17533227,65976.0,65975.0,0.40757491]
[1727460221672,0.02376227,65976.0,65975.0,0.40757491]
[1727460221893,0.151569,65977.0,65976.0,0.2362]
[1727460222331,0.151564,65979.0,65977.0,0.1588]
[1727460222562,0.454686,65980.0,65979.0,0.005]
[1727460222830,0.30311,65983.0,65980.0,0.1588]
[1727460223025,0.151559,65981.0,65980.0,0.2394]
[1727460224414,0.25130007,65981.0,65980.0,0.2394]
[1727460225638,0.25330007,65981.0,65980.0,0.2394]
[1727460226100,0.27506078,65981.0,65980.0,0.2394]
[1727460226318,0.27506078,65981.0,65980.0,0.2404]
[1727460226543,0.27506078,65981.0,65980.0,0.2424]
[1727460227028,0.27506078,65981.0,65980.0,0.2444]
[1727460227029,0.25130007,65981.0,65980.0,0.2444]
[1727460227957,0.001658,65984.0,65983.0,0.005]
[1727460228193,0.001658,65984.0,65983.0,0.40607491]
[1727460228443,0.153209,65984.0,65983.0,0.2311]
[1727460229115,0.154209,65984.0,65983.0,0.2311]
[1727460229342,0.154209,65984.0,65983.0,0.2321]
[1727460229343,0.002658,65984.0,65983.0,0.2321]
[1727460230223,0.154209,65984.0,65983.0,0.2321]
[1727460230679,0.002658,65984.0,65983.0,0.2321]
[1727460231133,0.154209,65984.0,65983.0,0.2321]
[1727460231367,0.001658,65984.0,65983.0,0.2311]
[1727460231795,0.001658,65984.0,65983.0,0.385654]
[1727460232018,0.001658,65984.0,65983.0,0.56062891]
[1727460232235,0.001658,65984.0,65983.0,0.40907491]
[1727460232672,0.153209,65984.0,65983.0,0.40907491]
[1727460232888,0.153209,65984.0,65983.0,0.2341]
[1727460233165,0.04550959,65984.0,65983.0,0.2401]
[1727460233413,0.19706059,65984.0,65983.0,0.2401]
[1727460234331,0.22081951,65984.0,65983.0,0.2401]
[1727460234554,0.19706059,65984.0,65983.0,0.2401]
[1727460238788,0.002658,65984.0,65983.0,0.2401]
[1727460239031,0.154209,65984.0,65983.0,0.2401]
[1727460244522,0.17796781,65984.0,65983.0,0.2401]
[1727460246040,0.02641681,65984.0,65983.0,0.2401]
[1727460246902,0.154209,65984.0,65983.0,0.2401]
[1727460247334,0.154209,65984.0,65983.0,0.23969183]
[1727460250269,0.17796811,65984.0,65983.0,0.23969183]
[1727460250992,0.22054115,65984.0,65983.0,0.23969183]
[1727460251465,0.19678204,65984.0,65983.0,0.23969183]
[1727460251939,0.19678204,65984.0,65983.0,0.39124583]
[1727460251940,0.002658,65984.0,65983.0,0.39124583]
[1727460253087,0.37797398,65997.0,65996.0,0.00428183]
[1727460253088,0.22645098,65997.0,65996.0,0.00428183]
[1727460253315,0.22645098,65997.0,65996.0,0.11909937]
[1727460253316,0.37797298,65997.0,65996.0,0.11909937]
[1727460253553,0.37797298,65997.0,65996.0,0.35419937]
[1727460253815,0.302979,66012.0,66002.0,0.00428183]
[1727460254043,0.22645098,66011.0,66005.0,0.27060237]
[1727460254281,0.37794098,66011.0,66005.0,0.51078255]
[1727460254500,0.02540858,66006.0,66005.0,0.56917129]
[1727460254737,0.001658,66006.0,66005.0,0.56917129]
[1727460255181,0.002658,66006.0,66005.0,0.56917129]
[1727460255648,0.001658,66006.0,66005.0,0.56917129]
[1727460256543,0.001658,66006.0,66005.0,0.24288183]
[1727460256761,0.002658,66006.0,66005.0,0.40438483]
[1727460257029,0.002658,66006.0,66005.0,0.39438483]
[1727460257030,0.001658,66006.0,66005.0,0.39438483]
[1727460257221,0.002658,66006.0,66005.0,0.40538483]
[1727460257450,0.002658,66006.0,66005.0,0.25388183]
[1727460257661,0.153159,66006.0,66005.0,0.16298183]
[1727460257872,0.154159,66006.0,66005.0,0.17398183]
[1727460259012,0.154159,66006.0,66005.0,0.16998183]
[1727460259220,0.15151,66002.0,66001.0,0.00428183]
[1727460261193,0.15151,66002.0,66001.0,0.00628183]
[1727460261612,0.17526309,66002.0,66001.0,0.00628183]
[1727460261828,0.17626309,66002.0,66001.0,0.01228183]
[1727460262089,0.17526309,66002.0,66001.0,0.00628183]
[1727460262301,0.17526309,66002.0,66001.0,0.00728183]
[1727460262748,0.02375309,66002.0,66001.0,0.15528183]
[1727460262988,0.02675309,66002.0,66001.0,0.38692376]
[1727460263201,0.02675309,66002.0,66001.0,0.38389383]
[1727460263202,0.02375309,66002.0,66001.0,0.38389383]
[1727460263449,0.02375309,66002.0,66001.0,0.38189383]
[1727460263946,0.02475309,66002.0,66001.0,0.38189383]
[1727460264157,0.02475309,66002.0,66001.0,0.38289383]
[1727460264427,0.001658,66006.0,66005.0,0.151503]
[1727460264619,0.001658,66006.0,66005.0,0.55751794]
[1727460264831,0.001658,66006.0,66005.0,0.55667129]
[1727460265262,0.00147557,66006.0,66005.0,0.55667129]
[1727460266659,0.00247557,66006.0,66005.0,1.01718129]
[1727460266876,0.00147557,66006.0,66005.0,1.01118129]
[1727460267123,0.00247557,66006.0,66005.0,1.02518129]
[1727460267367,0.00247557,66006.0,66005.0,0.70489183]
[1727460267368,0.15497657,66006.0,66005.0,0.70489183]
[1727460267588,0.00247557,66006.0,66005.0,0.61379183]
[1727460267822,0.15397657,66006.0,66005.0,0.61379183]
[1727460268044,0.15497657,66006.0,66005.0,0.62779183]
[1727460268502,0.15397657,66006.0,66005.0,0.61379183]
[1727460268734,0.15397657,66006.0,66005.0,0.62079183]
[1727460268992,0.15497657,66006.0,66005.0,0.62679183]
[1727460269197,0.15397657,66006.0,66005.0,0.62079183]
[1727460269635,0.15397657,66006.0,66005.0,0.62379183]
[1727460269872,0.15397657,66006.0,66005.0,0.62079183]
[1727460270332,0.15297657,66006.0,66005.0,0.61079183]
[1727460270817,0.15297657,66006.0,66005.0,0.61279183]
[1727460271527,0.00147557,66006.0,66005.0,0.78257829]
[1727460271750,0.00147557,66006.0,66005.0,0.78757829]
[1727460272207,0.00147557,66006.0,66005.0,0.79057829]
[1727460272450,0.15297657,66006.0,66005.0,0.79057829]
[1727460272688,0.00147557,66006.0,66005.0,0.94208129]
[1727460273149,0.00147557,66006.0,66005.0,1.01828129]
[1727460274611,0.00147557,66006.0,66005.0,1.01528129]
[1727460274840,0.00147557,66006.0,66005.0,1.02028129]
[1727460275327,0.00147557,66006.0,66005.0,1.01828129]
[1727460275829,0.00147557,66006.0,66005.0,1.01528129]
[1727460276061,0.00147557,66006.0,66005.0,1.01828129]
[1727460276319,0.00147557,66006.0,66005.0,1.01328129]
[1727460276547,0.00147557,66006.0,66005.0,1.01028129]
[1727460276767,0.00347557,66006.0,66005.0,1.03228129]
[1727460277231,0.00247557,66006.0,66005.0,1.01828129]
[1727460277471,0.00147557,66006.0,66005.0,1.02428129]
[1727460278894,0.00147557,66006.0,66005.0,1.01028129]
[1727460279121,0.00247557,66006.0,66005.0,1.01828129]
[1727460279471,0.00147557,66006.0,66005.0,1.01028129]
[1727460279559,0.00247557,66006.0,66005.0,1.01828129]
[1727460280272,0.00347557,66006.0,66005.0,1.03228129]
[1727460280758,0.00247557,66006.0,66005.0,1.01828129]
[1727460280982,0.00347557,66006.0,66005.0,1.03228129]
[1727460283092,0.00347557,66006.0,66005.0,1.03311029]
[1727460287759,0.00347557,66006.0,66005.0,0.85832383]
[1727460288238,0.00347557,66006.0,66005.0,0.70682083]
[1727460288700,0.00347557,66006.0,66005.0,0.85832383]
[1727460288932,0.00347557,66006.0,66005.0,0.70682083]
[1727460290329,0.15497657,66006.0,66005.0,0.63062083]
[1727460291250,0.26037093,66006.0,66005.0,0.61662083]
[1727460291920,0.15297657,66006.0,66005.0,0.60862083]
[1727460292370,0.15397657,66006.0,66005.0,0.61462083]
[1727460292593,0.15297657,66006.0,66005.0,0.60862083]
[1727460292824,0.26017093,66006.0,66005.0,0.61562083]
[1727460293130,0.15397657,66006.0,66005.0,0.46562083]
[1727460293359,0.15297657,66006.0,66005.0,0.45962083]
[1727460293615,0.15297657,66006.0,66005.0,0.462339]
[1727460293616,0.26027093,66006.0,66005.0,0.462339]
[1727460293873,0.34377093,66006.0,66005.0,0.468339]
[1727460295071,0.34177093,66006.0,66005.0,0.455339]
[1727460295536,0.34277093,66006.0,66005.0,0.461339]
[1727460296022,0.37737093,66006.0,66005.0,0.461339]
[1727460296275,0.47737093,66006.0,66005.0,0.461339]
[1727460296517,0.47837093,66006.0,66005.0,0.468339]
[1727460296757,0.47737093,66006.0,66005.0,0.462339]
[1727460296996,0.48937093,66006.0,66005.0,0.463339]
[1727460297246,0.49229966,66006.0,66005.0,0.456339]
[1727460298429,0.48929966,66006.0,66005.0,0.456339]
[1727460298880,0.50029966,66006.0,66005.0,0.457339]
[1727460299109,0.48929966,66006.0,66005.0,0.456339]
[1727460299340,0.49729966,66006.0,66005.0,0.457339]
[1727460299583,0.3564053,66006.0,66005.0,0.457339]
[1727460299874,0.3474053,66006.0,66005.0,0.456339]
[1727460300094,0.2739053,66006.0,66005.0,0.457339]
[1727460300551,0.16997657,66006.0,66005.0,0.46162083]
[1727460300777,0.01847557,66006.0,66005.0,0.46162083]
[1727460301004,0.16097657,66006.0,66005.0,0.46062083]
[1727460301446,0.16697657,66006.0,66005.0,0.46062083]
[1727460302447,0.15897657,66006.0,66005.0,0.45962083]
[1727460302872,0.15297657,66006.0,66005.0,0.45962083]
[1727460303293,0.15297657,66006.0,66005.0,0.46362083]
[1727460303764,0.15297657,66006.0,66005.0,0.46262083]
[1727460303983,0.15297657,66006.0,66005.0,0.46662083]
[1727460304455,0.15297657,66006.0,66005.0,0.46262083]
[1727460304918,0.15397657,66006.0,66005.0,0.46862083]
[1727460305154,0.00247557,66006.0,66005.0,0.46862083]
[1727460305380,0.00247557,66006.0,66005.0,0.77002383]
[1727460305631,0.00247557,66006.0,66005.0,0.84582383]
[1727460305856,0.00247557,66006.0,66005.0,0.84782383]
[1727460306082,0.00247557,66006.0,66005.0,0.84282383]
[1727460306345,0.00247557,66006.0,66005.0,0.84782383]
[1727460309136,0.00247557,66006.0,66005.0,1.02261029]
[1727460311353,0.00247557,66006.0,66005.0,0.47062083]
[1727460311354,0.15397657,66006.0,66005.0,0.47062083]
[1727460311599,0.16937423,66006.0,66005.0,0.47062083]
[1727460311825,0.15397657,66006.0,66005.0,0.47062083]
[1727460316598,0.17772814,66006.0,66005.0,0.47062083]
[1727460321020,0.15397657,66006.0,66005.0,0.47062083]
[1727460322178,0.15397657,66006.0,66005.0,0.466339]
[1727460322407,0.22967657,66006.0,66005.0,0.466339]
[1727460322663,0.36141788,66006.0,66005.0,0.466339]
[1727460322903,0.15397657,66006.0,66005.0,0.466339]
[1727460323140,0.15397657,66006.0,66005.0,0.461339]
[1727460323374,0.15497657,66006.0,66005.0,0.455339]
[1727460323607,0.15297657,66006.0,66005.0,0.455339]
[1727460324114,0.17872851,66006.0,66005.0,0.455339]
[1727460324334,0.17672851,66006.0,66005.0,0.45962083]
[1727460325208,0.15297657,66006.0,66005.0,0.45962083]
[1727460325949,0.15297657,66006.0,66005.0,0.46062083]
[1727460326386,0.00347557,66006.0,66005.0,0.46062083]
[1727460326608,0.00147557,66006.0,66005.0,0.69472083]
[1727460326833,0.00147557,66006.0,66005.0,0.85122383]
[1727460327058,0.00147557,66006.0,66005.0,0.85522383]
[1727460327307,0.00147557,66006.0,66005.0,0.84622383]
[1727460327575,0.00147557,66006.0,66005.0,0.85022383]
[1727460327824,0.00147557,66006.0,66005.0,0.85522383]
[1727460328067,0.00147557,66006.0,66005.0,0.85122383]
[1727460328277,0.00047558,66006.0,66005.0,0.85622383]
[1727460329180,0.00047558,66006.0,66005.0,0.85122383]
[1727460329416,0.00147558,66006.0,66005.0,0.85722383]
[1727460329631,0.00147558,66006.0,66005.0,0.85222383]
[1727460329842,0.00247558,66006.0,66005.0,0.85922383]
[1727460330071,0.00247558,66006.0,66005.0,0.85322383]
[1727460330072,0.00147558,66006.0,66005.0,0.85322383]
[1727460330316,0.00047558,66006.0,66005.0,0.84622383]
[1727460330546,0.00147558,66006.0,66005.0,0.86022383]
[1727460331031,0.00247558,66006.0,66005.0,0.86722383]
[1727460331567,0.00147558,66006.0,66005.0,0.85322383]
[1727460331836,0.15297658,66006.0,66005.0,0.46662083]
[1727460332528,0.00147558,66006.0,66005.0,0.46662083]
[1727460332754,0.15197658,66006.0,66005.0,0.45962083]
[1727460332999,0.22877244,66006.0,66005.0,0.47362083]
[1727460333300,0.22877244,66006.0,66005.0,0.47862083]
[1727460333519,0.15297658,66006.0,66005.0,0.47362083]
[1727460333754,0.15297658,66006.0,66005.0,0.46562083]
[1727460334011,0.1777277,66006.0,66005.0,0.47262083]
[1727460334268,0.1777277,66006.0,66005.0,0.46662083]
[1727460334269,0.1767277,66006.0,66005.0,0.46662083]
[1727460334524,0.1767277,66006.0,66005.0,0.45962083]
[1727460334525,0.1757277,66006.0,66005.0,0.45962083]
[1727460334757,0.1757277,66006.0,66005.0,0.46262083]
[1727460335448,0.15197658,66006.0,66005.0,0.46262083]
[1727460335663,0.17572778,66006.0,66005.0,0.46262083]
[1727460336614,0.17672778,66006.0,66005.0,0.46562083]
[1727460336861,0.17572778,66006.0,66005.0,0.45962083]
[1727460337146,0.17572778,66006.0,65988.0,0.04539103]
[1727460337147,0.00571817,65998.0,65988.0,0.04539103]
[1727460337357,0.251531,65993.0,65988.0,0.22645098]
[1727460337590,0.251531,65993.0,65984.0,0.000829]
[1727460337591,0.151549,65985.0,65984.0,0.000829]
[1727460339192,0.17530906,65985.0,65984.0,0.000829]
[1727460340082,0.17630906,65985.0,65984.0,0.000829]
[1727460340332,0.18530906,65985.0,65984.0,0.001829]
[1727460340552,0.28610186,65985.0,65984.0,0.001829]
[1727460341092,0.28410186,65985.0,65984.0,0.001829]
[1727460341313,0.28610186,65985.0,65984.0,0.001829]
[1727460341540,0.27910186,65985.0,65984.0,0.000829]
[1727460341784,0.27810186,65985.0,65984.0,0.000829]
[1727460342452,0.37810186,65985.0,65984.0,0.000829]
[1727460343143,0.38610186,65985.0,65984.0,0.001829]
[1727460343397,0.38610186,65985.0,65984.0,0.000829]
[1727460343398,0.37710186,65985.0,65984.0,0.000829]
[1727460343644,0.38410186,65985.0,65984.0,0.001829]
[1727460343894,0.39510186,65985.0,65984.0,0.001829]
[1727460344119,0.39510186,65985.0,65984.0,0.000829]
[1727460344120,0.37710186,65985.0,65984.0,0.000829]
[1727460344353,0.39710186,65985.0,65984.0,0.000829]
[1727460344850,0.37710186,65985.0,65984.0,0.000829]
[1727460345072,0.39710186,65985.0,65984.0,0.000829]
[1727460352571,0.29530906,65985.0,65984.0,0.000829]
[1727460352792,0.171549,65985.0,65984.0,0.000829]
[1727460353490,0.171549,65985.0,65984.0,0.154129]
[1727460354461,0.171549,65985.0,65984.0,0.15841083]
[1727460355435,0.160549,65985.0,65984.0,0.15841083]
[1727460355689,0.18568296,65985.0,65984.0,0.15841083]
[1727460355934,0.160549,65985.0,65984.0,0.15841083]
[1727460356168,0.151549,65985.0,65984.0,0.15841083]
[1727460356639,0.151549,65985.0,65984.0,0.15941083]
[1727460357087,0.17530832,65985.0,65984.0,0.15941083]
[1727460358488,0.151549,65985.0,65984.0,0.15941083]
[1727460360077,0.17530803,65985.0,65984.0,0.15941083]
[1727460360569,0.151549,65985.0,65984.0,0.15941083]